bitfinex-derivatives/quotes_SOLF0:USTF0_20250319
["timestamp","ask_amount","ask_price","bid_price","bid_amount"]
[1742399109542,300.2222251,132.17,132.11,89.55798903]
[1742399109738,34.8539251,132.15,132.11,260.4783524]
[1742399109941,34.772782,132.15,132.11,260.4783524]
[1742399110143,0.0521619,132.14,132.12,0.05298459]
[1742399110344,7.5685,132.13,132.12,0.05298459]
[1742399110839,34.8539251,132.16,132.12,89.61097362]
[1742399111043,1.89233379,132.13,132.12,89.61097362]
[1742399111436,222.25923412,132.17,132.12,89.61097362]
[1742399111641,222.25923412,132.17,132.12,40.58343969]
[1742399111836,0.03034873,132.16,132.12,87.14343969]
[1742399112240,0.03034873,132.16,132.12,40.58343969]
[1742399112444,1.89193847,132.15,132.12,40.58343969]
[1742399112843,1.89193847,132.15,132.13,46.44]
[1742399113445,34.8539251,132.24,132.15,10.2185313]
[1742399113446,261.2,132.22,132.15,10.2185313]
[1742399113841,261.2,132.22,132.15,56.5385313]
[1742399114642,261.2,132.22,132.17,0.05253651]
[1742399115048,296.0539251,132.22,132.17,0.05253651]
[1742399115344,7.5652,132.18,132.17,0.05253651]
[1742399116341,42.4191251,132.18,132.17,0.05253651]
[1742399116546,7.5664,132.16,132.15,10.2185313]
[1742399116742,34.8539251,132.18,132.15,259.7865102]
[1742399116948,7.5692,132.12,132.09,61.33474243]
[1742399117241,45.92,132.15,132.09,61.33474243]
[1742399117543,0.05253651,132.13,132.11,0.05297974]
[1742399117748,201.50114791,132.16,132.11,45.93297974]
[1742399117947,201.50114791,132.16,132.12,40.97620509]
[1742399118147,209.06754791,132.16,132.12,40.97620509]
[1742399118646,7.5671,132.15,132.12,40.97620509]
[1742399118853,201.50114791,132.16,132.12,40.97620509]
[1742399119148,7.5676,132.14,132.12,40.97620509]
[1742399119955,7.5681,132.13,132.12,40.97620509]
[1742399120645,219.45543948,132.16,132.11,0.05297974]
[1742399120646,7.5687,132.12,132.11,0.05297974]
[1742399121351,7.571,132.08,132.07,35.41879231]
[1742399122153,50.0049251,132.08,132.07,9.231e-05]
[1742399122349,130.0,132.07,131.99,2.0389]
[1742399122549,34.8539251,132.05,131.99,2.0389]
[1742399122749,7.5767,131.98,131.97,57.87377774]
[1742399123959,7.5767,131.98,131.96,0.0576852]
[1742399124156,0.05480635,131.99,131.96,0.0576852]
[1742399124453,45.72,131.98,131.96,0.0576852]
[1742399124755,53.2967,131.98,131.96,0.0576852]
[1742399124951,45.72,131.98,131.96,0.0576852]
[1742399125151,47.23538111,131.98,131.96,0.0576852]
[1742399125352,7.5773,131.97,131.96,0.0576852]
[1742399125555,64.02144824,131.97,131.96,0.0576852]
[1742399125752,71.60144824,131.97,131.96,0.0576852]
[1742399126052,3.41013094,131.97,131.96,0.0576852]
[1742399127550,10.98743094,131.97,131.96,0.0576852]
[1742399127756,10.98743094,131.97,131.81,501.39655843]
[1742399127757,56.44414824,131.93,131.77,363.0]
[1742399127947,56.44414824,131.9,131.82,2.0933]
[1742399128352,1.894635,131.89,131.82,2.0933]
[1742399128651,7.5834,131.87,131.82,2.0933]
[1742399128855,0.04977559,131.87,131.84,0.04965305]
[1742399129058,104.22067841,131.88,131.84,0.04965305]
[1742399129059,1.894635,131.86,131.84,0.04965305]
[1742399129452,1.894635,131.85,131.84,0.04965305]
[1742399129654,9.478835,131.85,131.84,0.04965305]
[1742399129856,17.058835,131.85,131.84,0.04965305]
[1742399130354,7.5859,131.83,131.75,4.1072]
[1742399130555,45.98,131.82,131.75,4.1072]
[1742399130754,45.98,131.82,131.75,11.6971]
[1742399130957,1.894635,131.81,131.75,4.1072]
[1742399131357,58.33878324,131.81,131.75,1.973]
[1742399131554,56.49801392,131.79,131.77,0.04925607]
[1742399131755,53.4482,131.78,131.77,0.04925607]
[1742399131958,56.44414824,131.74,131.7,6.0422]
[1742399132150,56.44414824,131.76,131.7,6.0422]
[1742399132560,64.03354824,131.76,131.7,6.0422]
[1742399132759,56.44414824,131.76,131.7,4.112]
[1742399133057,0.05235411,131.74,131.72,0.04782643]
[1742399133355,1.894635,131.73,131.72,0.04782643]
[1742399134656,102.17650235,131.74,131.72,0.04782643]
[1742399136360,109.76720235,131.74,131.72,0.04782643]
[1742399136759,363.81650235,131.74,131.72,0.04782643]
[1742399137162,365.33464414,131.74,131.72,0.04782643]
[1742399137361,1.51825704,131.73,131.65,6.0064]
[1742399137563,56.44414824,131.71,131.64,129.0]
[1742399137764,45.04,131.7,131.64,129.0]
[1742399137960,45.04,131.7,131.66,7.5946]
[1742399138461,45.04,131.7,131.67,0.05401654]
[1742399138658,0.05408704,131.69,131.67,0.05401654]
[1742399140066,1.51825704,131.73,131.71,7.5922]
[1742399140367,1.51825704,131.73,131.65,44.72]
[1742399140765,1.51825704,131.73,131.72,7.5917]
[1742399141167,1.51825704,131.73,131.71,7.64980319]
[1742399141567,1.51825704,131.73,131.71,7.592]
[1742399141769,1.5717479,131.73,131.71,7.64992439]
[1742399141967,1.5717479,131.73,131.72,7.5917]
[1742399142169,1.5717479,131.73,131.71,0.05792439]
[1742399142369,58.01589614,131.73,131.71,0.05792439]
[1742399142771,7.5917,131.72,131.71,0.05792439]
[1742399142971,58.01589614,131.73,131.71,0.05792439]
[1742399143376,7.5917,131.72,131.71,0.05792439]
[1742399143679,58.01589614,131.73,131.71,0.05792439]
[1742399144172,58.01589614,131.73,131.71,7.64982439]
[1742399144679,58.01589614,131.73,131.71,0.05792439]
[1742399145481,58.01589614,131.73,131.64,129.0]
[1742399145780,56.44414824,131.71,131.64,129.0]
[1742399145980,51.6132,131.7,131.64,129.0]
[1742399146178,44.02,131.7,131.67,7.5945]
[1742399146382,45.51825704,131.73,131.64,129.0]
[1742399146586,0.05557967,131.7,131.67,0.04859477]
[1742399146781,45.51825704,131.73,131.72,7.5917]
[1742399147178,261.64,131.74,131.73,7.5911]
[1742399147384,261.82,131.79,131.7,43.92]
[1742399147587,261.82,131.79,131.71,4.1422]
[1742399147785,261.82,131.79,131.78,7.5882]
[1742399148079,269.4076,131.79,131.71,4.1422]
[1742399148277,269.4076,131.79,131.77,0.0554927]
[1742399148475,0.05666858,131.76,131.71,4.1422]
[1742399148678,261.82,131.79,131.71,4.1422]
[1742399148885,261.82,131.79,131.78,7.5882]
[1742399149484,261.82,131.79,131.74,42.49005866]
[1742399150185,261.82,131.79,131.78,7.5882]
[1742399151082,261.82,131.79,131.74,42.49005866]
[1742399151283,0.05422504,131.8,131.75,56.44414824]
[1742399151483,261.84,131.84,131.75,56.44414824]
[1742399151688,261.84,131.84,131.83,7.5853]
[1742399152187,261.84,131.84,131.78,43.52]
[1742399152390,318.28414824,131.84,131.78,43.52]
[1742399152588,7.586,131.82,131.75,43.42]
[1742399152790,64.08840367,131.82,131.8,0.04836447]
[1742399152985,56.50240367,131.82,131.75,43.42]
[1742399153389,56.50240367,131.82,131.77,0.05376392]
[1742399153593,64.08870367,131.82,131.77,0.05376392]
[1742399153886,56.50240367,131.82,131.78,7.5877]
[1742399154190,64.08860367,131.82,131.77,0.05376392]
[1742399154584,64.08860367,131.82,131.78,7.5878]
[1742399154892,56.44414824,131.8,131.77,0.05376392]
[1742399155586,56.44414824,131.78,131.77,0.05376392]
[1742399157086,64.03234824,131.78,131.77,0.05376392]
[1742399157393,325.82414824,131.78,131.71,42.86]
[1742399157693,64.03384824,131.76,131.73,7.5909]
[1742399158094,56.44414824,131.76,131.73,129.0]
[1742399158294,7.5905,131.74,131.73,129.0]
[1742399158494,64.03464824,131.74,131.73,129.04994732]
[1742399159195,42.72,131.75,131.73,129.04994732]
[1742399159390,0.05772706,131.76,131.73,129.04994732]
[1742399159784,0.05772706,131.76,131.75,7.5899]
[1742399159990,30.9427212,131.76,131.75,7.5899]
[1742399160191,30.9427212,131.76,131.73,0.04994732]
[1742399160689,30.9427212,131.76,131.74,42.48]
[1742399160891,27.7285212,131.76,131.74,42.48]
[1742399161093,27.7285212,131.76,131.75,7.5899]
[1742399161500,31.99091596,131.76,131.75,7.5899]
[1742399162484,33.88826308,131.76,131.75,7.5899]
[1742399163097,33.88824008,131.76,131.75,7.5899]
[1742399164295,22.77714008,131.76,131.75,7.5899]
[1742399164696,1.89732412,131.76,131.75,7.5899]
[1742399167296,1.89732412,131.76,131.74,7.5903]
[1742399167595,1.89732412,131.76,131.73,30.04994732]
[1742399167894,7.5905,131.74,131.73,30.04994732]
[1742399168391,9.48782412,131.74,131.73,30.04994732]
[1742399168596,9.48839873,131.74,131.73,30.04994732]
[1742399168994,1.89789873,131.74,131.73,30.04994732]
[1742399169396,1.89789873,131.74,131.73,37.64104732]
[1742399173298,1.89789873,131.74,131.73,30.04994732]
[1742399174003,42.44439736,131.74,131.64,41.08]
[1742399174197,34.84439736,131.71,131.64,43.0234]
[1742399174404,42.43669736,131.71,131.68,7.5936]
[1742399174701,34.84439736,131.71,131.64,43.0234]
[1742399175103,0.05009256,131.69,131.67,7.5945]
[1742399175294,0.05009256,131.69,131.66,0.05219034]
[1742399176096,7.64379256,131.69,131.66,7.64699034]
[1742399176293,0.05009256,131.69,131.66,0.05219034]
[1742399176694,7.5944,131.68,131.66,0.05219034]
[1742399176898,34.89448992,131.69,131.66,0.05219034]
[1742399177299,7.5945,131.67,131.66,0.05219034]
[1742399177704,34.89448992,131.69,131.66,0.05219034]
[1742399177907,7.594,131.68,131.66,0.05219034]
[1742399178106,34.89448992,131.69,131.66,0.05219034]
[1742399178504,7.5945,131.67,131.66,0.05219034]
[1742399180310,7.5966,131.64,131.6,1.9704]
[1742399180611,34.84439736,131.65,131.6,1.9704]
[1742399180915,7.5977,131.62,131.58,40.4]
[1742399181211,296.78439736,131.65,131.57,47.2556]
[1742399181410,0.05827159,131.62,131.6,0.0561815]
[1742399181612,0.05827159,131.62,131.61,7.598]
[1742399183208,261.94,131.65,131.64,7.5963]
[1742399184015,40.12,131.68,131.67,7.5945]
[1742399184210,269.5331,131.7,131.67,7.5945]
[1742399184413,0.05712888,131.69,131.67,7.5945]
[1742399184609,0.05712888,131.69,131.66,0.0516425]
[1742399184814,34.90152624,131.69,131.66,0.0516425]
[1742399185015,7.5945,131.67,131.66,0.0516425]
[1742399185512,34.84439736,131.67,131.58,363.0]
[1742399185708,34.84439736,131.67,131.6,39.94]
[1742399185912,34.84439736,131.65,131.53,413.04859736]
[1742399186117,7.5972,131.63,131.6,7.5981]
[1742399186415,74.72439736,131.65,131.6,7.5981]
[1742399186613,7.5975,131.62,131.6,7.5981]
[1742399186914,7.5975,131.62,131.61,0.04812187]
[1742399187920,264.8771075,131.64,131.61,0.04812187]
[1742399188112,262.0323075,131.64,131.61,0.04812187]
[1742399188311,262.0323075,131.64,131.62,7.597]
[1742399188505,262.0323075,131.64,131.61,0.04812187]
[1742399189616,269.6289075,131.64,131.61,7.64572187]
[1742399190117,7.5969,131.63,131.61,0.04812187]
[1742399190319,262.0323075,131.64,131.61,0.04812187]
[1742399190616,269.6288075,131.64,131.61,0.04812187]
[1742399190914,34.84439736,131.63,131.61,0.04812187]
[1742399191119,262.0323075,131.64,131.61,0.04812187]
[1742399192219,296.87670486,131.64,131.61,0.04812187]
[1742399192619,7.5964,131.63,131.61,0.04812187]
[1742399193222,304.47250486,131.64,131.61,0.04812187]
[1742399193622,296.87670486,131.64,131.61,0.04812187]
[1742399194922,7.5964,131.63,131.61,0.04812187]
[1742399195122,296.87670486,131.64,131.61,0.04812187]
[1742399195721,262.0323075,131.64,131.61,0.04812187]
[1742399196624,262.0323075,131.64,131.52,6.8751]
[1742399196819,34.84439736,131.62,131.53,3.9851]
[1742399197028,296.92439736,131.68,131.56,34.84439736]
[1742399197523,34.84439736,131.66,131.57,39.2]
[1742399197829,7.5976,131.61,131.6,0.05010996]
[1742399198033,0.04990866,131.63,131.57,39.2]
[1742399198327,34.84439736,131.64,131.59,0.05656595]
[1742399198525,0.05500243,131.61,131.59,0.05656595]
[1742399198731,0.05500243,131.61,131.59,7.65446595]
[1742399198933,0.05500243,131.61,131.59,46.75446595]
[1742399199332,0.05500243,131.61,131.59,7.65446595]
[1742399200041,0.05500243,131.61,131.6,7.5978]
[1742399200835,0.05500243,131.61,131.59,0.05656595]
[1742399200836,262.08,131.68,131.64,7.5955]
[1742399201037,262.08,131.68,131.62,38.9]
[1742399201340,262.08,131.68,131.65,7.5949]
[1742399201939,262.13438264,131.68,131.65,7.64434274]
[1742399202642,262.13438264,131.68,131.65,0.04944274]
[1742399203033,262.13438264,131.68,131.67,7.5938]
[1742399203343,0.05438264,131.68,131.67,7.5938]
[1742399203739,0.05438264,131.68,131.65,38.74944274]
[1742399203939,0.05438264,131.68,131.65,0.04944274]
[1742399204342,7.64808264,131.68,131.65,0.04944274]
[1742399204741,34.84439736,131.67,131.65,0.04944274]
[1742399204938,296.92439736,131.67,131.65,0.04944274]
[1742399206441,262.08,131.67,131.65,0.04944274]
[1742399206739,0.05438264,131.68,131.65,0.04944274]
[1742399207238,0.05438264,131.68,131.67,7.5938]
[1742399207542,0.05438264,131.68,131.67,38.42]
[1742399208239,0.05438264,131.68,131.67,46.0138]
[1742399209340,262.06,131.72,131.67,38.42]
[1742399209648,1.51848758,131.71,131.67,38.42]
[1742399210546,0.05262315,131.7,131.68,0.04915226]
[1742399210738,1.5187182,131.69,131.68,0.04915226]
[1742399210939,1.5187182,131.69,131.68,7.64235226]
[1742399211136,1.5187182,131.69,131.68,0.04915226]
[1742399211846,36.36311556,131.69,131.6,7.974]
[1742399212046,34.84439736,131.67,131.62,7.5964]
[1742399212441,7.5953,131.65,131.62,7.5963]
[1742399212641,34.84439736,131.67,131.62,7.5963]
[1742399213043,0.05728485,131.66,131.63,0.05259319]
[1742399213543,7.5955,131.64,131.63,0.05259319]
[1742399213944,34.84439736,131.65,131.59,37.94]
[1742399214144,7.5964,131.63,131.59,7.5982]
[1742399214448,7.5964,131.63,131.59,37.92]
[1742399214646,7.5972,131.62,131.59,7.5982]
[1742399214851,34.84439736,131.65,131.59,37.86]
[1742399215148,0.04906809,131.63,131.61,0.05359029]
[1742399216149,7.5967,131.62,131.61,0.05359029]
[1742399217153,7.64536809,131.63,131.61,0.05359029]
[1742399218248,7.5967,131.62,131.61,0.05359029]
[1742399219249,7.64546809,131.63,131.61,0.05359029]
[1742399219750,0.04906809,131.63,131.61,0.05359029]
[1742399220152,0.04906809,131.63,131.61,7.65029029]
[1742399220342,0.04906809,131.63,131.62,37.42]
[1742399221146,0.04906809,131.63,131.62,45.0167]
[1742399221854,1.5187182,131.69,131.62,37.42]
[1742399222249,7.5942,131.67,131.64,7.5952]
[1742399222553,36.36311556,131.69,131.62,37.42]
[1742399222752,73.64311556,131.69,131.62,37.42]
[1742399223053,0.05164914,131.67,131.64,0.0574857]
[1742399223256,34.8960465,131.67,131.64,0.0574857]
[1742399223445,7.5949,131.65,131.64,0.0574857]
[1742399224852,7.5972,131.61,131.6,37.14]
[1742399225155,296.90439736,131.65,131.58,44.7189]
[1742399225351,300.91839736,131.65,131.58,44.6989]
[1742399225751,7.5976,131.61,131.59,7.5982]
[1742399226151,0.05521696,131.61,131.59,7.65607322]
[1742399226551,0.05521696,131.61,131.6,7.5978]
[1742399227358,1.5187182,131.69,131.59,0.05787322]
[1742399227359,7.5935,131.68,131.65,7.5947]
[1742399227850,36.36311556,131.69,131.63,36.96]
[1742399228450,7.5943,131.67,131.64,7.5954]
[1742399228652,7.65119923,131.67,131.65,0.05417351]
[1742399228860,0.05689923,131.67,131.65,0.05417351]
[1742399229057,0.05689923,131.67,131.65,7.64887351]
[1742399229656,0.05689923,131.67,131.65,0.05417351]
[1742399230156,0.05689923,131.67,131.66,7.5944]
[1742399232159,0.05689923,131.67,131.66,44.1944]
[1742399233256,262.06,131.7,131.69,7.5926]
[1742399234252,262.06,131.7,131.64,40.3405]
[1742399234461,262.06,131.7,131.68,0.05784981]
[1742399234655,262.11771029,131.7,131.68,0.05784981]
[1742399234857,42.43699736,131.69,131.68,0.05784981]
[1742399235254,7.5926,131.69,131.68,0.05784981]
[1742399235454,269.71001029,131.7,131.68,0.05784981]
[1742399235960,7.5926,131.69,131.68,0.05784981]
[1742399236753,7.5943,131.67,131.64,36.32]
[1742399236958,34.84439736,131.69,131.64,7.5952]
[1742399237460,7.5944,131.66,131.63,370.5958]
[1742399237760,7.5944,131.66,131.63,363.0]
[1742399237961,0.05592276,131.66,131.63,370.64627557]
[1742399238357,0.05592276,131.66,131.63,7.64627557]
[1742399238559,0.05592276,131.66,131.63,0.05047557]
[1742399239457,7.5955,131.64,131.63,0.05047557]
[1742399240059,7.5967,131.62,131.57,4.1942]
[1742399240262,70.94439736,131.65,131.57,4.1942]
[1742399240457,70.94439736,131.65,131.61,7.5969]
[1742399240651,70.94439736,131.65,131.57,4.1942]
[1742399241057,70.94439736,131.65,131.61,7.597]
[1742399241258,0.05366073,131.62,131.6,0.05449057]
[1742399241662,7.5972,131.61,131.6,0.05449057]
[1742399242163,0.05366073,131.62,131.6,0.05449057]
[1742399242359,0.05366073,131.62,131.6,7.65189057]
[1742399242562,0.05366073,131.62,131.6,0.05449057]
[1742399242863,7.5972,131.61,131.6,0.05449057]
[1742399245464,0.05366073,131.62,131.6,0.05449057]
[1742399245864,0.05366073,131.62,131.61,7.5972]
[1742399246964,43.2935,131.68,131.61,35.7]
[1742399247265,43.2935,131.68,131.61,39.8703]
[1742399247663,7.5938,131.67,131.65,7.5946]
[1742399247966,35.7,131.68,131.61,39.8703]
[1742399248163,0.04889657,131.67,131.65,0.05790557]
[1742399248363,7.5944,131.66,131.65,0.05790557]
[1742399248560,0.04889657,131.67,131.65,0.05790557]
[1742399248763,7.64299657,131.67,131.65,7.65280557]
[1742399248963,0.04889657,131.67,131.65,0.05790557]
[1742399249763,7.64279657,131.67,131.65,7.65250557]
[1742399250164,0.04889657,131.67,131.65,0.05790557]
[1742399250369,0.04889657,131.67,131.66,7.5944]
[1742399252868,0.04889657,131.67,131.65,7.65250557]
[1742399253068,0.04889657,131.67,131.65,0.05790557]
[1742399253266,7.64309657,131.67,131.65,0.05790557]
[1742399254171,7.5944,131.66,131.65,0.05790557]
[1742399255171,7.64289657,131.67,131.65,0.05790557]
[1742399255371,0.04889657,131.67,131.65,0.05790557]
[1742399255769,0.04889657,131.67,131.66,35.14]
[1742399256366,0.04889657,131.67,131.66,42.7344]
[1742399257172,34.84439736,131.73,131.7,7.5917]
[1742399257473,42.43509736,131.73,131.7,7.5917]
[1742399257971,34.84439736,131.73,131.7,7.5917]
[1742399258170,34.84439736,131.73,131.68,7.5926]
[1742399258371,34.89437986,131.73,131.7,0.05511192]
[1742399258873,7.5919,131.71,131.7,0.05511192]
[1742399259868,0.0499825,131.73,131.7,0.05511192]
[1742399260468,7.6406825,131.73,131.71,7.5912]
[1742399260667,0.0499825,131.73,131.7,0.05511192]
[1742399261173,0.0499825,131.73,131.72,7.5909]
[1742399262372,41.82184654,131.79,131.72,42.34]
[1742399262572,41.82184654,131.79,131.72,34.74]
[1742399262875,49.40904654,131.79,131.72,34.74]
[1742399263074,49.40904654,131.79,131.75,7.5888]
[1742399263274,41.82184654,131.79,131.72,401.8225]
[1742399263476,41.82184654,131.79,131.73,3.9991]
[1742399263680,0.04863918,131.77,131.74,7.63838251]
[1742399263872,7.63703918,131.77,131.74,0.04898251]
[1742399264174,0.04863918,131.77,131.74,0.04898251]
[1742399264370,7.63713918,131.77,131.74,0.04898251]
[1742399265173,7.5887,131.76,131.74,0.04898251]
[1742399265375,0.04863918,131.77,131.74,0.04898251]
[1742399265673,7.589,131.76,131.74,0.04898251]
[1742399265877,0.04863918,131.77,131.74,0.04898251]
[1742399266073,7.63693918,131.77,131.74,0.04898251]
[1742399266675,7.63693918,131.77,131.74,7.63858251]
[1742399266976,0.04863918,131.77,131.74,0.04898251]
[1742399267177,0.04863918,131.77,131.75,7.5891]
[1742399267976,7.63683918,131.77,131.74,7.63828251]
[1742399268682,0.04863918,131.77,131.74,0.04898251]
[1742399268874,21.77201874,131.76,131.74,0.04898251]
[1742399269181,0.04863918,131.77,131.75,7.5887]
[1742399269982,0.04863918,131.77,131.74,0.04898251]
[1742399270375,0.04863918,131.77,131.74,7.63838251]
[1742399270774,0.04863918,131.77,131.74,0.04898251]
[1742399271175,0.04863918,131.77,131.76,7.5886]
[1742399272776,0.04863918,131.77,131.74,0.04898251]
[1742399273374,21.82065792,131.77,131.74,0.04898251]
[1742399273683,7.5886,131.76,131.74,0.04898251]
[1742399274085,21.82065792,131.77,131.74,0.04898251]
[1742399274280,0.04863918,131.77,131.74,0.04898251]
[1742399274481,0.04863918,131.77,131.76,7.5886]
[1742399275180,0.04863918,131.77,131.76,41.8486]
[1742399276280,0.04863918,131.77,131.74,34.26898251]
[1742399276687,0.04863918,131.77,131.75,7.5892]
[1742399276984,0.04863918,131.77,131.74,34.26898251]
[1742399277485,0.04863918,131.77,131.76,7.5886]
[1742399277990,0.04863918,131.77,131.75,7.5889]
[1742399278987,7.63663918,131.77,131.75,7.5889]
[1742399279591,0.04863918,131.77,131.75,7.5889]
[1742399279880,0.04863918,131.77,131.76,7.5886]
[1742399281088,261.96,131.81,131.8,7.5863]
[1742399282383,0.05512124,131.82,131.81,7.5857]
[1742399282682,0.05512124,131.82,131.79,0.05549987]
[1742399283493,7.5863,131.8,131.79,0.05549987]
[1742399284892,29.35801874,131.81,131.79,0.05549987]
[1742399285093,0.05512124,131.82,131.79,7.64219987]
[1742399285595,0.05512124,131.82,131.8,7.5863]
[1742399285894,0.05512124,131.82,131.79,0.05549987]
[1742399286393,0.05512124,131.82,131.81,7.5857]
[1742399286695,0.05512124,131.82,131.79,33.77549987]
[1742399286995,0.05512124,131.82,131.79,41.36209987]
[1742399287197,0.05512124,131.82,131.79,7.64209987]
[1742399287596,7.5857,131.81,131.79,7.64209987]
[1742399287792,21.77201874,131.81,131.79,0.05549987]
[1742399288190,0.05512124,131.82,131.79,0.05549987]
[1742399288788,0.05512124,131.82,131.81,7.5857]
[1742399289596,0.05512124,131.82,131.79,0.05549987]
[1742399289993,7.5863,131.8,131.79,0.05549987]
[1742399290193,0.05512124,131.82,131.79,0.05549987]
[1742399290593,7.5862,131.81,131.79,0.05549987]
[1742399290890,0.05512124,131.82,131.79,0.05549987]
[1742399291397,7.5863,131.8,131.79,0.05549987]
[1742399293297,29.76141874,131.81,131.79,0.05549987]
[1742399293503,0.05512124,131.82,131.79,0.05549987]
[1742399293901,0.05512124,131.82,131.79,7.64209987]
[1742399294502,7.64032124,131.82,131.79,7.64209987]
[1742399294694,0.05512124,131.82,131.8,7.5862]
[1742399295095,7.64032124,131.82,131.8,7.5862]
[1742399295299,0.05512124,131.82,131.79,0.05549987]
[1742399295507,0.05512124,131.82,131.79,33.31549987]
[1742399295906,0.05512124,131.82,131.81,7.5857]
[1742399297199,49.40454654,131.87,131.84,7.5838]
[1742399297396,41.82184654,131.87,131.84,7.5838]
[1742399297599,63.59386528,131.87,131.84,7.5838]
[1742399297800,63.59386528,131.87,131.82,33.2]
[1742399298007,63.59386528,131.87,131.83,7.5843]
[1742399298208,63.59386528,131.87,131.82,33.2]
[1742399298509,0.04961595,131.86,131.84,0.05246249]
[1742399299008,7.5837,131.85,131.84,0.05246249]
[1742399299509,29.35571874,131.85,131.84,0.05246249]
[1742399299713,7.5852,131.82,131.8,33.12]
[1742399300401,7.5857,131.81,131.79,7.5866]
[1742399300598,54.81201874,131.85,131.78,33.04]
[1742399300798,54.81201874,131.85,131.8,0.05389766]
[1742399301003,0.05626537,131.83,131.8,0.05389766]
[1742399301401,0.05626537,131.83,131.82,7.5851]
[1742399301804,0.05626537,131.83,131.81,33.0]
[1742399302008,7.64106537,131.83,131.81,33.0]
[1742399302409,0.05626537,131.83,131.81,33.0]
[1742399303009,7.5851,131.82,131.81,33.0]
[1742399303207,0.05626537,131.83,131.81,33.0]
[1742399303808,7.64126537,131.83,131.81,40.5857]
[1742399304607,261.76,131.89,131.82,21.77201874]
[1742399304807,18.76057122,131.9,131.84,21.77201874]
[1742399305008,10.51627122,131.9,131.86,21.77201874]
[1742399305205,10.51627122,131.9,131.89,7.5811]
[1742399305406,10.51627122,131.9,131.87,33.02]
[1742399305812,10.56783737,131.9,131.87,33.0751021]
[1742399306012,10.56783737,131.9,131.88,7.5813]
[1742399306314,10.56783737,131.9,131.87,33.0751021]
[1742399307006,32.33985611,131.9,131.87,0.0551021]
[1742399307609,44.17685611,131.9,131.87,0.0551021]
[1742399308013,22.40483737,131.9,131.87,0.0551021]
[1742399308214,18.51053737,131.9,131.87,0.0551021]
[1742399308704,47.86345611,131.9,131.87,0.0551021]
[1742399308908,40.28255611,131.9,131.87,0.0551021]
[1742399309116,29.76628489,131.9,131.87,0.0551021]
[1742399309717,37.34728489,131.9,131.87,0.0551021]
[1742399310618,7.5812,131.89,131.87,0.0551021]
[1742399311820,37.34708489,131.9,131.87,0.0551021]
[1742399312013,29.76628489,131.9,131.87,0.0551021]
[1742399312208,0.05156615,131.9,131.87,0.0551021]
[1742399312919,0.05156615,131.9,131.89,7.5811]
[1742399314615,0.05156615,131.9,131.88,7.5814]
[1742399314819,0.05156615,131.9,131.87,32.8151021]
[1742399315719,7.63256615,131.9,131.87,40.3973021]
[1742399315919,0.05156615,131.9,131.87,32.8151021]
[1742399316319,7.63256615,131.9,131.87,7.6373021]
[1742399319019,0.05156615,131.9,131.87,7.6373021]
[1742399319523,0.05156615,131.9,131.87,0.0551021]
[1742399319919,0.05156615,131.9,131.89,7.5811]
[1742399320120,261.7,131.94,131.89,32.48]
[1742399320621,11.8015,131.97,131.89,32.48]
[1742399320821,4.2246,131.97,131.89,32.48]
[1742399321021,7.5777,131.95,131.93,7.5785]
[1742399321321,7.62645725,131.95,131.93,7.63501569]
[1742399321822,7.62645725,131.95,131.93,0.05651569]
[1742399322019,0.04875725,131.95,131.93,0.05651569]
[1742399323122,0.04875725,131.95,131.93,7.63511569]
[1742399323920,0.04875725,131.95,131.94,7.5782]
[1742399324117,0.04875725,131.95,131.93,0.05651569]
[1742399324426,0.04875725,131.95,131.93,7.63501569]
[1742399324920,7.62655725,131.95,131.93,0.05651569]
[1742399325120,0.04875725,131.95,131.93,0.05651569]
[1742399325513,0.04875725,131.95,131.94,7.5782]
[1742399328023,0.04875725,131.95,131.93,4.11251569]
[1742399328617,0.04875725,131.95,131.93,11.69091569]
[1742399329125,0.04875725,131.95,131.93,43.79091569]
[1742399329425,7.62645725,131.95,131.93,43.79091569]
[1742399330120,0.04875725,131.95,131.93,43.79091569]
[1742399330325,0.04875725,131.95,131.94,7.5782]
[1742399330722,0.04875725,131.95,131.93,36.21251569]
[1742399330915,0.04875725,131.95,131.93,32.15651569]
[1742399331525,7.5782,131.94,131.93,32.15651569]
[1742399331726,0.04875725,131.95,131.93,32.15651569]
[1742399332427,7.62665725,131.95,131.93,39.73521569]
[1742399333122,0.04875725,131.95,131.93,32.15651569]
[1742399333426,0.04875725,131.95,131.94,7.5782]
[1742399335528,5.725e-05,131.95,131.94,7.5782]